bitfinex-derivatives/quotes_BTCF0:USTF0_20251225
["timestamp","ask_amount","ask_price","bid_price","bid_amount"]
[1766666006609,0.02527329,87643.0,87627.0,0.0114188]
[1766666006906,0.03669019,87642.0,87627.0,0.0114188]
[1766666007108,0.02527329,87641.0,87627.0,0.0114188]
[1766666009404,0.02527329,87640.0,87627.0,0.0114188]
[1766666009606,0.0114166,87645.0,87627.0,0.0114188]
[1766666009809,0.02527346,87644.0,87627.0,0.0114188]
[1766666010107,0.02527346,87643.0,87627.0,0.0114188]
[1766666010300,0.02527346,87642.0,87627.0,0.0114188]
[1766666010501,0.02527346,87641.0,87627.0,0.0114188]
[1766666010704,0.02527346,87640.0,87627.0,0.0114188]
[1766666010900,0.02527346,87639.0,87627.0,0.0114188]
[1766666011101,0.02527346,87638.0,87627.0,0.0114188]
[1766666011308,0.02527346,87637.0,87627.0,0.0114188]
[1766666011607,0.02527346,87636.0,87627.0,0.0114188]
[1766666011812,0.02527346,87635.0,87627.0,0.0114188]
[1766666012110,0.011417,87641.0,87627.0,0.0114188]
[1766666012309,0.02527358,87640.0,87627.0,0.0114188]
[1766666012502,0.02527358,87639.0,87627.0,0.0114188]
[1766666012703,0.02527358,87638.0,87627.0,0.0114188]
[1766666012904,0.02527358,87637.0,87627.0,0.0114188]
[1766666013202,0.02527358,87636.0,87627.0,0.0114188]
[1766666013402,0.011417,87641.0,87623.0,0.05716]
[1766666013403,0.02527358,87635.0,87623.0,0.0685792]
[1766666013606,0.04103554,87645.0,87623.0,0.03]
[1766666013804,0.04103554,87645.0,87617.0,0.01142]
[1766666013805,0.0114182,87632.0,87616.0,0.0334]
[1766666014001,0.0114182,87632.0,87616.0,0.0634]
[1766666014002,0.02527369,87631.0,87616.0,0.0634]
[1766666014408,0.02527369,87631.0,87616.0,0.0748202]
[1766666015318,0.02527369,87631.0,87620.0,0.0114197]
[1766666015502,0.0114178,87635.0,87620.0,0.0114197]
[1766666015706,0.02526571,87634.0,87620.0,0.0114197]
[1766666016020,0.02526571,87633.0,87616.0,0.0334]
[1766666016217,0.0114178,87635.0,87616.0,0.0634]
[1766666016417,0.0114181,87633.0,87617.0,0.01142]
[1766666016714,0.0114179,87634.0,87619.0,0.0114198]
[1766666016917,0.0252635,87633.0,87619.0,0.0414198]
[1766666017121,0.0114179,87634.0,87619.0,0.0414198]
[1766666017301,0.0252635,87633.0,87619.0,0.0414198]
[1766666017502,0.0114179,87634.0,87619.0,0.0414198]
[1766666017707,0.02526193,87633.0,87619.0,0.0414198]
[1766666017917,0.0114176,87637.0,87619.0,0.0414198]
[1766666018115,0.02526193,87636.0,87619.0,0.0414198]
[1766666018318,0.02526193,87635.0,87619.0,0.0414198]
[1766666018616,0.02526193,87634.0,87619.0,0.0414198]
[1766666018821,0.02526193,87633.0,87619.0,0.0414198]
[1766666019121,0.0114176,87637.0,87619.0,0.0414198]
[1766666019422,0.02526036,87636.0,87619.0,0.0414198]
[1766666019605,0.02526036,87635.0,87619.0,0.0414198]
[1766666019805,0.02526036,87634.0,87619.0,0.0414198]
[1766666020004,0.02526036,87633.0,87619.0,0.0414198]
[1766666020205,0.0114176,87637.0,87619.0,0.0414198]
[1766666020420,0.02525856,87636.0,87619.0,0.0414198]
[1766666020618,0.0114172,87640.0,87621.0,0.0114195]
[1766666020809,0.02525856,87639.0,87621.0,0.0114195]
[1766666021010,0.02525856,87638.0,87621.0,0.0114195]
[1766666021209,0.0114172,87640.0,87621.0,0.0114195]
[1766666021419,0.0252578,87639.0,87621.0,0.0114195]
[1766666021717,0.0114172,87640.0,87623.0,0.0114193]
[1766666022019,0.0252578,87639.0,87623.0,0.0114193]
[1766666022210,0.0114172,87640.0,87623.0,0.0114193]
[1766666022410,0.02525716,87639.0,87623.0,0.0114193]
[1766666022709,0.0114172,87640.0,87623.0,0.0114193]
[1766666022904,0.0114174,87638.0,87620.0,0.0114196]
[1766666023110,0.0114177,87636.0,87620.0,0.0414196]
[1766666026821,0.0114177,87636.0,87622.0,0.0114194]
[1766666027219,0.0114173,87639.0,87622.0,0.0114194]
[1766666027523,0.02525532,87638.0,87618.0,0.01142]
[1766666027723,0.0114168,87643.0,87628.0,0.0114186]
[1766666031027,0.0114164,87646.0,87628.0,0.0114186]
[1766666031221,0.0114166,87644.0,87628.0,0.0114186]
[1766666032630,0.0114166,87644.0,87630.0,0.0114184]
[1766666035030,0.0114163,87647.0,87632.0,0.0114181]
[1766666038027,0.05716,87649.0,87632.0,0.0114181]
[1766666038225,0.05716,87649.0,87639.0,0.0114172]
[1766666038826,0.05716,87649.0,87636.0,0.0114175]
[1766666039636,0.02505546,87648.0,87633.0,0.0114179]
[1766666039934,0.068576,87649.0,87633.0,0.0114179]
[1766666040136,0.02505546,87648.0,87633.0,0.0114179]
[1766666040337,0.068576,87649.0,87633.0,0.0114179]
[1766666040535,0.0250552,87648.0,87633.0,0.0114179]
[1766666040736,0.068576,87649.0,87633.0,0.0114179]
[1766666041037,0.0250552,87648.0,87633.0,0.0114179]
[1766666041239,0.068576,87649.0,87633.0,0.0114179]
[1766666041437,0.02505507,87648.0,87633.0,0.0114179]
[1766666041639,0.0114162,87647.0,87631.0,0.00017122]
[1766666041824,0.0114162,87647.0,87631.0,0.02017122]
[1766666042228,0.05716,87649.0,87632.0,0.0114181]
[1766666042526,0.02505006,87648.0,87632.0,0.0314181]
[1766666042723,0.05716,87649.0,87632.0,0.0314181]
[1766666043146,0.02505005,87648.0,87632.0,0.0314181]
[1766666043351,0.0114161,87648.0,87634.0,0.0114179]
[1766666044152,0.05716,87649.0,87634.0,0.0114179]
[1766666044542,0.068576,87649.0,87634.0,0.0114179]
[1766666045052,0.0114162,87647.0,87631.0,0.01158942]
[1766666045251,0.05716,87649.0,87631.0,0.01158942]
[1766666045252,0.0114165,87645.0,87631.0,0.02158942]
[1766666046352,0.0114162,87648.0,87631.0,0.02158942]
[1766666047850,0.0114162,87648.0,87631.0,0.01017122]
[1766666048047,0.0114162,87648.0,87633.0,0.011418]
[1766666048345,0.05716,87649.0,87631.0,0.00017122]
[1766666048544,0.068576,87649.0,87634.0,0.0114178]
[1766666049458,0.0114163,87646.0,87631.0,0.01158942]
[1766666049654,0.068576,87649.0,87633.0,0.011418]
[1766666050854,0.068576,87649.0,87635.0,0.0114177]
[1766666051256,0.0114162,87647.0,87632.0,0.0114181]
[1766666052357,0.068576,87649.0,87631.0,0.00017122]
[1766666052557,0.068576,87649.0,87631.0,0.01017122]
[1766666053053,0.05716,87649.0,87636.0,0.0114176]
[1766666053758,0.0114161,87648.0,87633.0,0.0114179]
[1766666054053,0.0114161,87648.0,87635.0,0.0114177]
[1766666054258,0.068576,87649.0,87635.0,0.0114177]
[1766666055259,0.05716,87649.0,87631.0,0.00017122]
[1766666055554,0.05716,87649.0,87631.0,0.03017122]
[1766666057260,0.05716,87649.0,87634.0,0.0114178]
[1766666057459,0.05716,87649.0,87634.0,0.0314178]
[1766666060862,0.02505909,87648.0,87634.0,0.0314178]
[1766666061063,0.02505909,87647.0,87634.0,0.0314178]
[1766666061254,0.02505909,87646.0,87634.0,0.02]
[1766666061456,0.0114161,87648.0,87634.0,0.02]
[1766666061654,0.0114166,87644.0,87631.0,0.00017122]
[1766666061966,0.0114166,87644.0,87631.0,0.00706634]
[1766666063662,0.00017122,87646.0,87631.0,0.00706634]
[1766666063967,0.00017122,87646.0,87634.0,0.0114178]
[1766666064164,0.02506642,87645.0,87634.0,0.0114178]
[1766666064366,0.00017122,87646.0,87634.0,0.0114178]
[1766666064564,0.02506953,87645.0,87634.0,0.0114178]
[1766666064758,0.00017122,87646.0,87634.0,0.0114178]
[1766666064958,0.02506953,87645.0,87634.0,0.0114178]
[1766666065164,0.00017122,87646.0,87634.0,0.0114178]
[1766666065361,0.02499913,87645.0,87634.0,0.0114178]
[1766666065553,0.00017122,87646.0,87634.0,0.0114178]
[1766666065764,0.02499934,87645.0,87634.0,0.0114178]
[1766666065965,0.00017122,87646.0,87634.0,0.0114178]
[1766666066163,0.02499902,87645.0,87634.0,0.0114178]
[1766666066368,0.00017122,87646.0,87634.0,0.0114178]
[1766666066671,0.0250014,87645.0,87634.0,0.0114178]
[1766666066969,0.00017122,87646.0,87637.0,0.0114174]
[1766666068056,0.00017122,87646.0,87629.0,0.05729122]
[1766666068261,0.00017122,87646.0,87639.0,0.0114172]
[1766666071260,0.00017122,87646.0,87636.0,0.0114176]
[1766666077377,0.00017122,87646.0,87633.0,0.011418]
[1766666077672,0.00017122,87646.0,87633.0,0.041418]
[1766666080383,0.00017122,87646.0,87635.0,0.0114177]
[1766666080572,0.00017122,87646.0,87635.0,0.0414177]
[1766666082380,0.00228174,87653.0,87637.0,0.0114174]
[1766666082381,0.01369724,87653.0,87637.0,0.0114174]
[1766666082680,0.0249858,87652.0,87637.0,0.0114174]
[1766666082881,0.0249858,87651.0,87637.0,0.0114174]
[1766666083186,0.0249858,87650.0,87637.0,0.0114174]
[1766666083381,0.0249858,87649.0,87637.0,0.0114174]
[1766666083581,0.0249858,87648.0,87637.0,0.0114174]
[1766666083783,0.01369724,87653.0,87637.0,0.0114174]
[1766666083967,0.02498576,87652.0,87637.0,0.0114174]
[1766666084180,0.02498576,87651.0,87637.0,0.0114174]
[1766666084477,0.02498576,87650.0,87637.0,0.0114174]
[1766666084674,0.02498576,87649.0,87637.0,0.0114174]
[1766666084876,0.02498576,87648.0,87637.0,0.0114174]
[1766666085077,0.01369724,87653.0,87637.0,0.0114174]
[1766666085275,0.02498567,87652.0,87637.0,0.0114174]
[1766666085489,0.02498567,87651.0,87637.0,0.0114174]
[1766666085691,0.02498567,87650.0,87637.0,0.0114174]
[1766666085881,0.02498567,87649.0,87637.0,0.0114174]
[1766666086081,0.02498567,87648.0,87637.0,0.0114174]
[1766666086385,0.01369724,87653.0,87637.0,0.0114174]
[1766666086585,0.02498556,87652.0,87637.0,0.0114174]
[1766666086885,0.02498556,87651.0,87637.0,0.0114174]
[1766666087087,0.02498556,87650.0,87637.0,0.0114174]
[1766666087384,0.02498556,87649.0,87637.0,0.0114174]
[1766666087585,0.02498556,87648.0,87637.0,0.0114174]
[1766666087885,0.0114157,87651.0,87634.0,0.0114178]
[1766666088084,0.02498552,87650.0,87634.0,0.0414178]
[1766666088289,0.02498552,87649.0,87634.0,0.0414178]
[1766666088480,0.02498552,87648.0,87634.0,0.0414178]
[1766666088780,0.0114157,87651.0,87634.0,0.0414178]
[1766666088982,0.02498553,87650.0,87634.0,0.0414178]
[1766666089182,0.02498553,87649.0,87634.0,0.0414178]
[1766666089382,0.02498553,87648.0,87634.0,0.0414178]
[1766666089584,0.0114157,87651.0,87634.0,0.0414178]
[1766666089785,0.02498559,87650.0,87634.0,0.0414178]
[1766666089984,0.02498559,87649.0,87634.0,0.0414178]
[1766666090177,0.02498559,87648.0,87634.0,0.0414178]
[1766666090378,0.0114157,87651.0,87634.0,0.0414178]
[1766666090578,0.02498569,87650.0,87634.0,0.0414178]
[1766666090783,0.02498569,87649.0,87634.0,0.0414178]
[1766666090982,0.02498569,87648.0,87634.0,0.0414178]
[1766666091185,0.02498569,87647.0,87634.0,0.0414178]
[1766666091385,0.0114157,87651.0,87634.0,0.0414178]
[1766666091585,0.02498584,87650.0,87634.0,0.0414178]
[1766666091884,0.02498584,87649.0,87634.0,0.0414178]
[1766666092083,0.02498584,87648.0,87634.0,0.0414178]
[1766666092272,0.02498584,87647.0,87636.0,0.0114176]
[1766666092478,0.0114156,87652.0,87636.0,0.0114176]
[1766666092772,0.02498739,87651.0,87636.0,0.0114176]
[1766666092978,0.02498739,87650.0,87636.0,0.0114176]
[1766666093178,0.02498739,87649.0,87636.0,0.0114176]
[1766666093380,0.02498739,87648.0,87636.0,0.0114176]
[1766666093589,0.02498739,87647.0,87636.0,0.0114176]
[1766666093790,0.0114156,87652.0,87636.0,0.0114176]
[1766666094088,0.0249895,87651.0,87636.0,0.0114176]
[1766666094289,0.0249895,87650.0,87636.0,0.0114176]
[1766666094590,0.0249895,87649.0,87636.0,0.0114176]
[1766666094887,0.0249895,87648.0,87636.0,0.0114176]
[1766666095088,0.0249895,87647.0,87636.0,0.0114176]
[1766666095288,0.0114156,87652.0,87636.0,0.0114176]
[1766666095485,0.02495264,87651.0,87636.0,0.0114176]
[1766666095789,0.02495264,87650.0,87635.0,0.0114177]
[1766666095994,0.02495264,87649.0,87635.0,0.0414177]
[1766666096188,0.02495264,87648.0,87635.0,0.0414177]
[1766666096481,0.02495264,87647.0,87635.0,0.0414177]
[1766666096692,0.0114156,87652.0,87635.0,0.0414177]
[1766666096878,0.02495448,87651.0,87635.0,0.0414177]
[1766666097078,0.02495448,87650.0,87635.0,0.0414177]
[1766666097275,0.02495448,87649.0,87635.0,0.0414177]
[1766666097479,0.02495448,87648.0,87635.0,0.0414177]
[1766666097679,0.02495448,87647.0,87637.0,0.0114175]
[1766666097890,0.0114156,87652.0,87637.0,0.0114175]
[1766666098188,0.02495449,87651.0,87637.0,0.0114175]
[1766666098385,0.02495449,87650.0,87637.0,0.0114175]
[1766666098588,0.02495449,87649.0,87637.0,0.0114175]
[1766666098789,0.02495449,87648.0,87637.0,0.0114175]
[1766666098991,0.02495449,87647.0,87637.0,0.0114175]
[1766666099197,0.0114156,87652.0,87637.0,0.0114175]
[1766666099393,0.02495447,87651.0,87637.0,0.0114175]
[1766666099591,0.02495447,87650.0,87639.0,0.0114172]
[1766666099781,0.02495447,87649.0,87639.0,0.0114172]
[1766666099982,0.02495447,87648.0,87639.0,0.0114172]
[1766666100183,0.00228174,87653.0,87641.0,0.011417]
[1766666100389,0.00228174,87653.0,87638.0,0.0114173]
[1766666101490,0.01369714,87653.0,87638.0,0.0114173]
[1766666101684,0.0114161,87648.0,87632.0,0.0114181]
[1766666101884,0.0114161,87648.0,87634.0,0.0114179]
[1766666102079,0.0114161,87648.0,87634.0,0.0414179]
[1766666102288,0.00228174,87653.0,87629.0,0.00017122]
[1766666102595,0.0114178,87635.0,87618.0,0.0114199]
[1766666102887,0.0114181,87633.0,87618.0,0.03]
[1766666103295,0.0114177,87636.0,87618.0,0.03]
[1766666103595,0.00017122,87634.0,87618.0,0.03]
[1766666106094,0.01158922,87634.0,87618.0,0.03]
[1766666106297,0.0114185,87630.0,87618.0,0.03]
[1766666106488,0.00017122,87634.0,87617.0,0.00017122]
[1766666106489,0.0114188,87628.0,87617.0,0.00017122]
[1766666106794,0.0114193,87624.0,87617.0,0.00017122]
[1766666107092,0.0114193,87624.0,87617.0,1.22e-06]
[1766666111200,0.0114189,87627.0,87617.0,1.22e-06]
[1766666111501,0.0114185,87630.0,87617.0,1.22e-06]
[1766666111701,0.0114187,87628.0,87617.0,1.22e-06]
[1766666111899,0.01158922,87634.0,87617.0,0.01142132]
[1766666112498,0.0114182,87632.0,87617.0,0.01142132]
[1766666112699,0.0114182,87632.0,87617.0,1.22e-06]
[1766666114302,0.0114185,87630.0,87617.0,1.22e-06]
[1766666114604,0.0114181,87633.0,87617.0,1.22e-06]
[1766666119305,0.0114181,87633.0,87618.0,0.01142]
[1766666123410,0.00017122,87634.0,87618.0,0.01142]
[1766666123607,0.01158912,87634.0,87618.0,0.01142]
[1766666124200,0.01158912,87634.0,87620.0,0.0114197]
[1766666125804,0.01158912,87634.0,87617.0,0.01142132]
[1766666126211,0.0114182,87632.0,87617.0,0.03142132]
[1766666128912,0.00017122,87634.0,87619.0,0.0114198]
[1766666129112,0.01158912,87634.0,87619.0,0.0114198]
[1766666130014,0.00017122,87634.0,87617.0,1.22e-06]
[1766666130213,0.00017122,87634.0,87620.0,0.0114197]
[1766666133313,0.00017122,87634.0,87617.0,1.22e-06]
[1766666133498,0.0114175,87638.0,87617.0,0.03000122]
[1766666133704,0.02494875,87637.0,87617.0,0.03000122]
[1766666134012,0.03636645,87636.0,87617.0,0.03000122]
[1766666134211,0.02494875,87635.0,87617.0,0.03000122]
[1766666134415,0.00017,87635.0,87617.0,0.03000122]
[1766666134811,0.0114179,87634.0,87617.0,0.03000122]
[1766666135013,0.0114179,87634.0,87620.0,0.0114196]
[1766666135202,0.0114179,87634.0,87620.0,0.0414196]
[1766666135807,0.00017,87635.0,87620.0,0.03]
[1766666136106,0.00017,87635.0,87622.0,0.0114194]
[1766666136312,0.0114176,87637.0,87622.0,0.0414194]
[1766666136513,0.0114178,87635.0,87622.0,0.03]
[1766666136701,0.00728,87644.0,87622.0,0.03]
[1766666136702,0.0114181,87633.0,87622.0,0.03]
[1766666137307,0.0114184,87630.0,87622.0,0.03]
[1766666137510,0.0114188,87628.0,87617.0,1.22e-06]
[1766666137813,0.0114188,87628.0,87617.0,0.03000122]
[1766666138517,0.0114184,87631.0,87617.0,0.03000122]
[1766666140113,0.0114169,87642.0,87617.0,0.03000122]
[1766666140408,0.02495474,87641.0,87617.0,0.03000122]
[1766666140601,0.02495474,87640.0,87617.0,0.03000122]
[1766666140800,0.02495474,87639.0,87617.0,0.03000122]
[1766666141013,0.02495474,87638.0,87617.0,0.03000122]
[1766666141217,0.0114184,87631.0,87617.0,0.03000122]
[1766666145113,0.0114185,87630.0,87617.0,0.03000122]
[1766666146810,0.0114187,87628.0,87617.0,0.03000122]
[1766666147010,0.011419,87626.0,87617.0,0.03000122]
[1766666147306,0.0114193,87624.0,87617.0,0.03000122]
[1766666147510,0.0114197,87620.0,87611.0,0.05716]
[1766666147722,0.0114197,87620.0,87611.0,0.08716]
[1766666149422,0.01148,87628.0,87611.0,0.03]
[1766666149623,0.01148,87628.0,87607.0,0.00017122]
[1766666149921,0.01148,87628.0,87607.0,0.03017122]
[1766666150823,0.02495216,87627.0,87607.0,0.03017122]
[1766666151014,0.02495216,87626.0,87607.0,0.03017122]
[1766666151323,0.01148,87628.0,87607.0,0.03017122]
[1766666151521,0.0249508,87627.0,87607.0,0.03017122]
[1766666151731,0.0249508,87626.0,87607.0,0.03017122]
[1766666151911,0.01148,87628.0,87607.0,0.03017122]
[1766666152222,0.0114193,87624.0,87607.0,0.03017122]
[1766666157521,0.0114193,87624.0,87608.0,0.0114212]
[1766666157723,0.0114193,87624.0,87608.0,0.0414212]
[1766666159725,0.0114193,87624.0,87608.0,0.03]
[1766666160625,0.06155331,87640.0,87608.0,0.03]
[1766666160626,0.0114189,87627.0,87608.0,0.03]
[1766666161026,0.01464,87632.0,87611.0,0.0114208]
[1766666161215,0.02494672,87631.0,87611.0,0.0414208]
[1766666161521,0.04103554,87641.0,87617.0,0.01142]
[1766666161828,0.1997,87660.0,87617.0,0.03142]
[1766666161829,0.08210538,87640.0,87617.0,0.03142]
[1766666162021,0.08210538,87639.0,87620.0,0.00017122]
[1766666162225,0.02494538,87638.0,87620.0,0.00017122]
[1766666162527,0.02494538,87637.0,87620.0,0.00017122]
[1766666162726,0.0114181,87633.0,87620.0,0.00017122]
[1766666165033,0.01132,87642.0,87620.0,0.00017122]
[1766666165240,0.02494524,87641.0,87620.0,0.00017122]
[1766666165532,0.0114174,87638.0,87622.0,0.0114194]
[1766666166528,0.0114174,87638.0,87620.0,0.00017122]
[1766666166529,0.0114177,87636.0,87620.0,0.00017122]
[1766666166718,0.0114177,87636.0,87620.0,0.02017122]
[1766666172218,0.0114179,87634.0,87620.0,0.02017122]
[1766666175337,0.0114164,87646.0,87620.0,0.02017122]
[1766666175637,0.06522209,87645.0,87621.0,0.0114195]
[1766666175838,0.02494209,87644.0,87621.0,0.0114195]
[1766666176031,0.0114174,87638.0,87621.0,0.0114195]
[1766666176534,0.011417,87641.0,87623.0,0.0114193]
[1766666176739,0.04028,87645.0,87627.0,0.0114188]
[1766666176937,0.0114169,87642.0,87627.0,0.0114188]
[1766666177236,0.02493968,87641.0,87627.0,0.0114188]
[1766666177436,0.0114169,87642.0,87627.0,0.0114188]
[1766666177639,0.0249375,87641.0,87627.0,0.0114188]
[1766666177827,0.0114169,87642.0,87627.0,0.0114188]
[1766666178121,0.0249375,87641.0,87627.0,0.0114188]
[1766666178323,0.0114169,87642.0,87627.0,0.0114188]
[1766666178625,0.0114171,87640.0,87627.0,0.0114188]
[1766666179427,0.0114174,87638.0,87624.0,0.0114191]
[1766666179642,0.0114174,87638.0,87624.0,0.0414191]
[1766666181746,0.0114171,87641.0,87624.0,0.0414191]
[1766666185143,0.0114171,87641.0,87626.0,0.0114189]
[1766666185447,0.02304,87646.0,87630.0,0.0114184]
[1766666185645,0.02493556,87645.0,87630.0,0.0114184]
[1766666185949,0.02493556,87644.0,87630.0,0.0114184]
[1766666186244,0.02493556,87643.0,87630.0,0.0114184]
[1766666186439,0.02493556,87642.0,87630.0,0.0114184]
[1766666186745,0.02493556,87641.0,87630.0,0.0114184]
[1766666186943,0.02304,87646.0,87627.0,0.0114187]
[1766666187146,0.02493667,87645.0,87627.0,0.0114187]
[1766666187347,0.0114172,87640.0,87623.0,0.0114192]
[1766666187549,0.0114172,87640.0,87623.0,0.0414192]
[1766666189543,0.0114172,87640.0,87625.0,0.011419]
[1766666189759,0.0114168,87643.0,87625.0,0.011419]
[1766666190046,0.02494239,87642.0,87620.0,0.00017122]
[1766666190248,0.02494239,87641.0,87620.0,0.03017122]
[1766666190444,0.0114168,87643.0,87620.0,0.03017122]
[1766666190635,0.02494218,87642.0,87620.0,0.03017122]
[1766666190831,0.0114168,87643.0,87620.0,0.03017122]
[1766666191137,0.05716,87647.0,87620.0,0.03017122]
[1766666191648,0.05716,87647.0,87624.0,0.0114191]
[1766666191850,0.05716,87647.0,87624.0,0.0414191]
[1766666192150,0.0114173,87639.0,87624.0,0.0414191]
[1766666193550,0.0114173,87639.0,87626.0,0.0114189]
[1766666193753,0.0114169,87642.0,87626.0,0.0414189]
[1766666197851,0.05716,87647.0,87626.0,0.03]
[1766666198054,0.0114174,87638.0,87626.0,0.03]
[1766666198958,0.05716,87647.0,87626.0,0.03]
[1766666198959,0.011418,87634.0,87626.0,0.03]
[1766666199653,0.0114181,87633.0,87626.0,0.03]
[1766666202354,0.0114183,87631.0,87626.0,0.03]
[1766666202554,0.0114183,87631.0,87625.0,0.05716]
[1766666202555,0.08215638,87636.0,87625.0,0.04687]
[1766666202756,0.0114181,87633.0,87622.0,0.05716]
[1766666202957,0.08215638,87630.0,87622.0,0.08716]
[1766666207650,0.08215638,87630.0,87622.0,0.05716]
[1766666209960,0.0114184,87631.0,87622.0,0.05716]
[1766666214264,0.011418,87634.0,87622.0,0.05716]
[1766666217465,0.0114182,87632.0,87622.0,0.05716]
[1766666218165,0.0114186,87629.0,87622.0,0.05716]
[1766666218361,0.0114182,87632.0,87622.0,0.05716]
[1766666219864,0.0114179,87635.0,87622.0,0.05716]
[1766666221563,0.0685774,87638.0,87622.0,0.0685794]
[1766666221762,0.02474151,87637.0,87622.0,0.0685794]
[1766666221966,0.02474151,87636.0,87622.0,0.0685794]
[1766666222164,0.0685774,87638.0,87622.0,0.0685794]
[1766666222365,0.02474166,87637.0,87622.0,0.0685794]
[1766666222566,0.02474166,87636.0,87622.0,0.0685794]
[1766666222764,0.0685774,87638.0,87622.0,0.0685794]
[1766666222969,0.02474219,87637.0,87622.0,0.0685794]
[1766666223272,0.05716,87643.0,87622.0,0.0685794]
[1766666223771,0.0114173,87639.0,87622.0,0.0685794]
[1766666225570,0.0114175,87637.0,87622.0,0.0685794]
[1766666225975,0.0114172,87640.0,87622.0,0.0685794]
[1766666227369,0.0114174,87638.0,87622.0,0.0685794]
[1766666233078,0.0114171,87641.0,87622.0,0.0685794]
[1766666233375,0.0114173,87639.0,87622.0,0.0685794]
[1766666235276,0.0114175,87637.0,87622.0,0.0685794]
[1766666238979,0.0114172,87640.0,87624.0,0.0114192]
[1766666239178,0.0114174,87638.0,87622.0,0.05716]
[1766666239379,0.0114174,87638.0,87623.0,0.0114193]
[1766666239573,1.45648,87651.0,87623.0,0.0114193]
[1766666239574,0.0114173,87639.0,87623.0,0.03]
[1766666239871,0.0114173,87639.0,87624.0,0.05716]
[1766666240083,0.0114175,87637.0,87624.0,0.08716]
[1766666249580,0.08216255,87640.0,87624.0,0.08716]
[1766666249787,0.08216255,87640.0,87620.0,0.00017122]
[1766666249988,0.13932255,87640.0,87620.0,0.06825122]
[1766666250882,0.0114173,87639.0,87620.0,0.06825122]
[1766666251086,0.0114186,87629.0,87620.0,0.06825122]
[1766666251991,0.0114189,87627.0,87620.0,0.06825122]
[1766666255292,0.13932255,87640.0,87610.0,0.04104099]
[1766666255588,0.01142,87618.0,87610.0,0.03]
[1766666256185,0.08216255,87620.0,87610.0,0.03]
[1766666262095,0.0114198,87619.0,87610.0,0.03]
[1766666262296,0.08216255,87620.0,87606.0,0.00017122]
[1766666262297,0.0114204,87615.0,87606.0,0.00017122]
[1766666262500,0.0114206,87614.0,87606.0,0.03017122]
[1766666262695,0.0114206,87614.0,87606.0,0.00017122]
[1766666264895,0.0114208,87612.0,87606.0,0.00017122]
[1766666265095,0.0114208,87612.0,87602.0,0.05716]
[1766666265096,0.05716,87619.0,87602.0,0.04742578]
[1766666265299,0.0114215,87607.0,87602.0,8e-08]
[1766666265487,0.0114218,87605.0,87593.0,0.0594433]
[1766666265694,0.0114213,87608.0,87593.0,0.0894433]
[1766666266202,0.011421,87611.0,87593.0,0.1008665]
[1766666268306,0.05716,87619.0,87593.0,0.1008665]
[1766666268506,0.05716,87619.0,87593.0,0.0894433]
[1766666268706,0.0114204,87615.0,87597.0,0.0114226]
[1766666268900,0.0114204,87615.0,87597.0,0.0414226]
[1766666270414,0.0114201,87618.0,87597.0,0.0414226]
[1766666270908,0.0114205,87615.0,87597.0,0.0414226]
[1766666272004,0.09632882,87607.0,87597.0,0.0414226]
[1766666272202,0.08222441,87607.0,87597.0,0.0414226]
[1766666272407,0.16444882,87607.0,87597.0,0.0414226]
[1766666278410,0.16444882,87607.0,87599.0,0.0114224]
[1766666281798,0.16444882,87607.0,87601.0,0.0114221]
[1766666282003,0.22160882,87611.0,87601.0,0.0114221]
[1766666282212,0.22160882,87611.0,87598.0,0.0114226]
[1766666282414,0.16444882,87608.0,87598.0,0.0114226]
[1766666282608,0.16444882,87608.0,87600.0,0.0114223]
[1766666283212,0.16444882,87608.0,87602.0,0.011422]
[1766666283412,0.05716,87611.0,87604.0,0.0114218]
[1766666283905,0.05716,87620.0,87603.0,0.05716]
[1766666284106,0.05716,87620.0,87603.0,0.08716]
[1766666284618,0.08222441,87613.0,87603.0,0.08716]
[1766666284806,0.05894805,87613.0,87603.0,0.08716]
[1766666285119,0.05894805,87613.0,87606.0,0.0114214]
[1766666287117,0.05894805,87613.0,87608.0,0.0114213]
[1766666287308,0.08222441,87618.0,87608.0,0.0114213]
[1766666287819,0.08222441,87618.0,87609.0,0.00471199]
[1766666288115,0.08222441,87618.0,87610.0,0.00471199]
[1766666288317,0.08222441,87618.0,87611.0,0.00471199]
[1766666288518,0.08222441,87618.0,87612.0,0.00471199]
[1766666288718,0.08222441,87618.0,87613.0,0.00471199]
[1766666289016,0.05716,87620.0,87614.0,0.00471199]
[1766666289212,0.05716,87620.0,87615.0,0.00471199]
[1766666289416,0.05716,87620.0,87605.0,0.0114216]
[1766666289822,0.08222441,87615.0,87605.0,0.0114216]
[1766666291218,0.08222441,87615.0,87603.0,0.05716]
[1766666291427,0.09364481,87615.0,87603.0,0.03]
[1766666292522,0.08222441,87615.0,87603.0,0.03]
[1766666294714,0.08222441,87615.0,87602.0,0.00259]
[1766666294915,0.15080481,87615.0,87602.0,0.03259]
[1766666295323,0.0114207,87613.0,87602.0,0.03259]
[1766666307333,0.0114207,87613.0,87602.0,0.00259]
[1766666320150,0.13938441,87615.0,87602.0,0.00259]
[1766666320452,0.0114208,87612.0,87600.0,0.04104099]
[1766666320648,0.08222441,87610.0,87600.0,0.07104099]
[1766666321254,0.08222441,87610.0,87601.0,0.04104099]
[1766666321553,0.08222441,87610.0,87601.0,0.07104099]
[1766666324356,0.08222441,87610.0,87601.0,0.08246319]
[1766666325056,0.08222441,87610.0,87601.0,0.07104099]
[1766666325554,0.08222441,87610.0,87602.0,0.0114221]
[1766666328356,0.08222441,87610.0,87601.0,0.02035473]
[1766666328556,0.08222441,87610.0,87601.0,0.05035473]
[1766666328857,0.08222441,87610.0,87601.0,0.03]
[1766666333953,0.0685809,87611.0,87597.0,0.05716]
[1766666334152,0.0685809,87611.0,87593.0,0.0022833]
[1766666334153,0.05716,87611.0,87593.0,0.0022833]
[1766666334352,0.0114214,87608.0,87594.0,0.04764]
[1766666334554,0.0114215,87606.0,87594.0,0.03]
[1766666335851,0.05716,87607.0,87594.0,0.03]
[1766666337361,0.0685815,87607.0,87594.0,0.03]
[1766666338557,0.011422,87603.0,87587.0,0.05716]
[1766666338759,0.05716,87602.0,87587.0,0.08716]
[1766666339068,0.0114222,87601.0,87587.0,0.08716]
[1766666339555,0.0114225,87599.0,87587.0,0.08716]
[1766666342263,0.0685821,87602.0,87587.0,0.08716]
[1766666343655,0.0114225,87599.0,87587.0,0.03]
[1766666343854,0.0114225,87599.0,87587.0,0.02]
[1766666344053,0.08220779,87600.0,87587.0,0.01]
[1766666345351,0.09363019,87600.0,87587.0,0.01]
[1766666350665,0.08220779,87600.0,87588.0,0.0114239]
[1766666351272,0.08220779,87600.0,87585.0,0.01159542]
[1766666351464,0.08220779,87600.0,87585.0,0.04159542]
[1766666354574,0.08220779,87600.0,87587.0,0.011424]
[1766666354776,0.08220779,87600.0,87587.0,0.041424]
[1766666359683,0.09363009,87600.0,87587.0,0.041424]
[1766666361185,0.09363009,87600.0,87587.0,0.03]